Cogmind - Beta 12 @@@ ROGUE MODE // 2024.02.16 @ 13:59:26 Player: ToasterKoishi Result: Destroyed by G-34 Mercenary with Small Laser Performance ------------- Evolutions (0) 0 Regions Visited (1) 200 Robots Destroyed (17) 85 Value Destroyed (356) 356 Prototype IDs (0) 0 Alien Tech Used (0) 0 Bonus (0) 0 TOTAL SCORE: 641 Bonus ------- None Cogmind --------- Core Integrity 0/250 Matter 286/300 Energy 250/250 System Corruption 0% Temperature Cool (6) Movement Rolling (130) Ox2 Location -10/Materials Parts ------- > --- POWER (1) -------- Ion Engine > --- PROPULSION (2) --- Compact Wheel Compact Wheel > --- UTILITY (2) ------ Huge Storage Unit Terrain Scanner > --- WEAPON (2) ------- Assault Rifle Light Assault Rifle > --- INVENTORY (25) --- Ion Engine Ion Engine Light Ion Engine Light Ion Engine Light Nuclear Core Flight Unit Flight Unit Flight Unit Flight Unit Heat Sink Heat Sink Medium Storage Unit High-capacity Storage Unit High-capacity Battery (250) Large Matter Pod (150) Large Matter Pod (150) Visual Processing Unit Sensor Array Signal Interpreter Improved Terrain Scanner Light Assault Rifle Light Assault Rifle Light Assault Rifle Grenade Launcher Grenade Launcher Peak State ------------ > --- POWER ------------ Ion Engine > --- PROPULSION ------- Compact Wheel Compact Wheel > --- UTILITY ---------- Huge Storage Unit Terrain Scanner > --- WEAPON ----------- Assault Rifle Light Assault Rifle > --- INVENTORY -------- Ion Engine Light Ion Engine Light Ion Engine Light Ion Engine Light Nuclear Core Flight Unit Flight Unit Flight Unit Flight Unit Heat Sink Heat Sink Small Storage Unit Medium Storage Unit High-capacity Storage Unit Medium Matter Pod Large Matter Pod Visual Processing Unit Sensor Array Signal Interpreter Improved Terrain Scanner Light Assault Rifle Light Assault Rifle Light Assault Rifle Grenade Launcher Grenade Launcher [Rating: 10] Favorites ----------- Power Ion Engine Engine Ion Engine Propulsion Compact Wheel Wheel Compact Wheel Utility Huge Storage Unit Device Terrain Scanner Storage Huge Storage Unit Weapon Assault Rifle Energy Gun Medium Laser Ballistic Gun Assault Rifle Build | -11 -10 ------- Run | Jun Mat Slots Evolved . | . . Power . | . . Propulsion . | . . Utility . | . . Weapon . | . . Parts Attached 15 | 8 7 Power 3 | 2 1 Engine 3 | 2 1 Core . | . . Reactor . | . . Propulsion 3 | 2 1 Treads . | . . Leg . | . . Wheel 3 | 2 1 Hover . | . . Flight . | . . Utility 4 | 2 2 Device 2 | 1 1 Storage 2 | 1 1 Processor . | . . Hackware . | . . Protection . | . . Artifact . | . . Weapon 5 | 2 3 Energy Gun 2 | 1 1 Energy Cannon . | . . Ballistic Gun 3 | 1 2 Ballistic Cannon . | . . Launcher . | . . Special Weapon . | . . Impact Weapon . | . . Slashing Weapon . | . . Piercing Weapon . | . . Special Melee Weapon . | . . Unidentified Prototypes . | . . Parts Lost 5 | . 5 Power 1 | . 1 Propulsion 1 | . 1 Utility 1 | . 1 Weapon 2 | . 2 Highest Loss Streak 5 | . 5 To Critical Strikes . | . . Average Slot Usage (%) 92 | . 92 Engine 13 | . 13 Wheel 26 | . 26 Device 9 | . 9 Storage 14 | . 14 Energy Gun 3 | . 3 Ballistic Gun 23 | . 23 Naked Turns . | . . Heaviest Build 90 | 15 90 Greatest Support 32 | 26 32 Greatest Overweight (x) 5 | 1 5 Average Overweight (x) 2 | . 2 Largest Inventory Capacity 25 | 8 25 Average Capacity 22 | 7 24 Most Carried 25 | 5 25 Average Carried 17 | 2 19 Final Capacity 25 | 8 25 Final Carried 25 | 5 25 Class Distribution -------------------- 100% | Mutant Dominant Class ---------------- Mutant | -10/Materials Resources | -11 -10 ----------- Run | Jun Mat Matter Collected 847 | 295 552 Remotely . | . . Salvage Created 512 | 105 407 Parts 41 | 4 37 Haulers Intercepted . | . . Recyclers Shooed 1 | 1 . Parts Field Recycled . | . . Retrieved Matter . | . . Parts Self-Destructed . | . . Prevented . | . . Kills | -11 -10 ------- Run | Jun Mat Combat Hostiles Destroyed 13 | . 13 Guns 13 | . 13 Classes Destroyed 5 | 2 3 Tunneler 1 | 1 . Recycler 1 | 1 . Watcher 2 | . 2 Swarmer 6 | . 6 Grunt 7 | . 7 Best Kill Streak 7 | 2 7 Combat Bots Only 7 | . 7 Max Kills in Single Turn 1 | 1 1 Gunslinging . | . . Exploded . | . . Melee . | . . Uniques/NPCs Destroyed . | . . Combat | -11 -10 -------- Run | Jun Mat Damage Taken 714 | . 714 Core 254 | . 254 Absorbed by Shields . | . . Core Remaining (%) 100 | 100 . Volleys Fired 42 | 5 37 Largest 2 | 2 2 Hottest 70 | 70 70 Shots Fired 71 | 10 61 Gun 71 | 10 61 Cannon . | . . Launcher . | . . Special . | . . Kinetic 52 | 5 47 Thermal 16 | 5 11 Explosive . | . . Electromagnetic 3 | . 3 Robot Hit Streak 14 | 3 14 Robot Miss Streak 3 | 1 3 Penetration Max . | . . Secondary Targets 1 | . 1 Max Gunslinging Chain 1 | . 1 Shots Hit Robots 47 | 7 40 Core Hits 24 | 3 21 Critical Kills 2 | . 2 Critical Parts Destroyed . | . . Critical Strikes 3 | . 3 Burn 1 | . 1 Destroy 2 | . 2 Melee Attacks . | . . Impact . | . . Slashing . | . . Piercing . | . . Sneak Attacks . | . . Combat Hostiles . | . . Follow-up Attacks . | . . Damage Inflicted 595 | 87 508 Guns 595 | 87 508 Cannons . | . . Explosions . | . . Melee . | . . Ramming . | . . Kinetic 404 | 38 366 Thermal 151 | 49 102 Explosive . | . . Electromagnetic 40 | . 40 Impact . | . . Slashing . | . . Piercing . | . . Highest Corruption . | . . Average Corruption . | . . Corruption Purged . | . . Corruption Blocked . | . . Overload Shots . | . . Overflow Damage . | . . Projectiles . | . . Explosions . | . . Melee . | . . Knockbacks . | . . Impact . | . . Kinetic . | . . Secondary . | . . Self-Inflicted Damage . | . . Shots . | . . Rammed . | . . Targets Rammed . | . . Kicked . | . . Crushed . | . . Highest Temperature 146 | 18 146 Average Temperature 54 | 9 65 Received Heat Transfer 261 | . 261 Siege Activations . | . . Robots Corrupted . | . . Combat Hostiles . | . . Parts Fried . | . . Impact Corruptions . | . . Robots Melted . | . . Combat Hostiles . | . . Parts Melted 2 | 1 1 Heat Transferred 518 | 148 370 Parts Sabotaged . | . . Parts Stolen . | . . Parts Stripped . | . . Power Chain Reactions . | . . Missiles Intercepted . | . . Alert | -11 -10 ------- Run | Jun Mat Peak Influence 341 | 10 341 Initial 6 | . 6 Average 120 | 5 136 Maximum Alert Level 1 | . 1 Low Security (%) 86 | 100 84 Level 1 13 | . 15 Level 2 . | . . Level 3 . | . . Level 4 . | . . Level 5 . | . . High Security . | . . Max Security . | . . Squads Dispatched 3 | . 3 Investigation 2 | . 2 Extermination . | . . Reinforcement 1 | . 1 Assault . | . . Garrison . | . . Intercept . | . . Searches Triggered . | . . Construction Impeded . | . . Haulers Reinforced . | . . Active Scanning Responses . | . . Cargo Convoy Interrupts . | . . Stealth | -11 -10 --------- Run | Jun Mat Distress Signals 2 | . 2 Communications Jammed . | . . Distress Signals . | . . Times Spotted 27 | . 27 Peak Tracking Total 9 | . 9 Tactical Retreats 2 | . 2 Traps | -11 -10 ------- Run | Jun Mat Traps Triggered 1 | . 1 Indirectly . | . . Trap Hack Attempts . | . . Triggered . | . . Disarmed . | . . Reprogrammed . | . . Reused . | . . Traps Extracted . | . . Installed . | . . Triggered . | . . Machines | -11 -10 ---------- Run | Jun Mat Machines Disabled . | . . Max in Single Turn . | . . Machines Repaired . | . . Machines Sabotaged . | . . Overloaded Fab Kills . | . . Hacking | -11 -10 --------- Run | Jun Mat Machines Accessed 4 | . 4 Terminals 4 | . 4 Fabricators . | . . Repair Stations . | . . Recycling Units . | . . Scanalyzers . | . . Garrison Access . | . . Total Hacks 8 | . 8 Successful 1 | . 1 Failed 7 | . 7 Catastrophic 3 | . 3 Database Lockouts . | . . Manual 9 | . 9 Terminals 8 | . 8 Fabricators . | . . Repair Stations . | . . Recycling Units . | . . Scanalyzers . | . . Garrison Access . | . . Terminal Hacks 1 | . 1 Robot Schematic 1 | . 1 Fabricator Hacks . | . . Repair Station Hacks . | . . Recycling Unit Hacks . | . . Scanalyzer . | . . Garrison Access Hacks . | . . Unauthorized Hacks . | . . Terminals . | . . Fabricators . | . . Repair Stations . | . . Recycling Units . | . . Scanalyzers . | . . Garrison Access . | . . Data Cores Recovered . | . . Used . | . . Hacking Detections 4 | . 4 Full Trace Events 2 | . 2 Feedback Events . | . . Feedback Blocked . | . . Robot Schematics Acquired 1 | . 1 Robots Built . | . . Authchips . | . . Time . | . . Total Robot Build Rating . | . . Part Schematics Acquired . | . . Parts Built . | . . Authchips . | . . Time . | . . Total Part Build Rating . | . . Parts Repaired . | . . Time . | . . Parts Recycled . | . . Recycled Matter . | . . Retrieved Matter . | . . Retrieved Components . | . . Parts Scanalyzed . | . . Part Schematics Acquired . | . . Parts Damaged . | . . Bothacking | -11 -10 ------------ Run | Jun Mat Used RIF Installer . | . . Robots Hacked . | . . Non-combat . | . . Combat . | . . Robot Hacks Applied . | . . Relay Couplers Released . | . . Fabnet Peak Effective % . | . . Robots Rewired . | . . Allies Hacked . | . . Hacks Repelled . | . . Allies | -11 -10 -------- Run | Jun Mat Total Allies . | . . Largest Group . | . . Highest-Rated Group . | . . Highest-Rated Ally . | . . Total Orders . | . . Ally Attacks . | . . Total Damage . | . . Kills . | . . Allies Corrupted . | . . Allies Melted . | . . Intel | -11 -10 ------- Run | Jun Mat Robot Analysis Total . | . . Derelict Logs Recovered . | . . Drone Launches . | . . Drone Recoveries . | . . Exploration | -11 -10 ------------- Run | Jun Mat Turns Passed 1003 | 119 884 Spaces Moved 617 | 82 535 Core 5 | 5 . Treads . | . . Legs . | . . Wheels 612 | 77 535 Hover . | . . Flight . | . . Fastest Speed 50 | 50 90 Average Speed 127 | 87 133 Slowest Speed 175 | 100 175 Overloaded Moves . | . . Propulsion Burnouts . | . . Robots Hopped . | . . Cave-ins Triggered . | . . Exploration Rate (%) 48 | 4 92 Regions Visited 1 Branch Regions . Pre-discovered Areas . | . . Known Exits Taken . | . . Unknown Exits Taken 1 | 1 . Scrap Searched . | . . Spaces Dug . | . . Terrain Destroyed . | . . Melee . | . . Projectile . | . . AOE . | . . Terrain Rammed . | . . Walls Destroyed . | . . Machines Disabled . | . . Actions | -11 -10 --------- Run | Jun Mat Total 764 | 115 649 Wait 56 | 16 40 Move 616 | 81 535 Hop . | . . Pick Up 30 | 5 25 Fast Attach 9 | 6 3 Attach 3 | 1 2 Detach . | . . Swap 3 | 1 2 Drop 5 | . 5 Fire 42 | 5 37 Melee . | . . Ram . | . . Kick . | . . Crush . | . . Escape Stasis . | . . Rewire . | . . Trap . | . . Miscellaneous . | . . Route ------- -11/Junkyard -10/Materials (discovered 4 exits: [*Mat x2] / [*Min x2]) History --------- Turn | Location | Event 17 | -11/Junkyard | Discovered new exit (range 16) 120 | -11/Junkyard | Entered Materials 247 | -10/Materials | Discovered new exit (range 16) 303 | -10/Materials | Build established: Mutant 375 | -10/Materials | Core integrity fell below 50% 384 | -10/Materials | Core integrity fell below 20% 412 | -10/Materials | Lost 5 parts (1p1n1u2w) 422 | -10/Materials | Destroyed 7 combat bots 467 | -10/Materials | Discovered new exit (range 14) 647 | -10/Materials | Discovered new exit (range 8) 783 | -10/Materials | Discovered new exit (range 4) 1004 | -10/Materials | Destroyed by G-34 Mercenary with Small Laser Last Messages --------------- 00762_ Acquired 114 matter. 00783_ EXIT=FOUND 00808_ K-01 Serf cleans the Fusion Modulator. 00823_ Dropped Med. Matter Pod. 00823_ Acquired Lrg. Matter Pod. 00824_ Acquired 100 matter. 00828_ Extracted 50 matter. 00829_ Dropped Sml. Storage Unit. 00842_ K-01 Serf cleans the Nuclear Reactor. 00850_ Acquired Med. Battery. 00857_ Triggered Alarm Trap. 00857_ An alarm sounds. 00857_ ALERT: Alarm triggered, dispatching investigation squad. 00928_ Dropped Assault Rifle. 00953_ Dropped Med. Battery. 00953_ Acquired Hcp. Battery. 00962_ R-06 Scavenger collects Med. Battery. 00984_ Dropped Lgt. Ion Engine. 00984_ Acquired Ion Engine. 01001_ R-06 Scavenger collects Lgt. Ion Engine. Map ----- +----------------------------------------------------+ | | | | | | | ??????#???????????????#############??????????????? | | ?????#????????????????# """ """ #?????#????????? | | ??????????????????#???# """"""""" #??????????????? | | ???????????????????#??# """"" " ##########?????? | | #################?????# #!! #?????? | | #?????# # """#?????? | | ####### #!= """##????? | | + #! """#??#??? | | #####+###+### #?????# | | +### # """#????#? | | # / """#?????? | | T # """ """ """ """ """ # """#?????? | | # """ """ """ """ """ # #?????# | | # """ """ """ """ """ ###+############ | | # # % # | | # # # | | # # """ """ """ # | | # ####### o # """ """ """ # | | # ########+### # """ """ """ # | | #### # [ ## ############ # | | #### + ## g # #######+####### | | |! # """ """## gg r #### | | # """ Y"## #@""" """ #??# | | ! # """ """## # """ """ #??# | | # ## + """ """ ???## ######## | | ###+######### ##########????# # ! | | #?# ######### ########??????# # | | #?# ##!] # # ######## + ! | | #?# ##!] # # T # ## # | | #?# ## # # # ![ ## #####+## | | """ ### ##! # # # [[ ## ##??# #? | | """ / + + # [ # ! #### ## | | """ ## # # # # | | ####+#### ######## """ / < | | #??? ??# ""?????# """ # | | #??? ??# "#???# """ # ###### | | #### #??? ??# !"#???# #######???## | | #### #??? ??# < ""#???# "T" #??????????# | | #??# ### |"#???# """ #??????????# | | #??# #?# "#???# #???????#??# | | #??# #?# """#???#####+#?????#????# | | ## ### #??# #?## ####??#????# #??????????# | | ?# #?# #??# #??#^ ############ #### ####### | | ?#! !###+#### #??# ^ # ## | | ?## !!!### # #??# ##+ | | ??######?# # #??# # #?# | | ?????????# # #??# ###/########+###?######?# | +----------------------------------------------------+ Best States ------------- Heat Dissipation 25 Energy Generation 10 Energy Capacity 250 Matter Stores 300 Matter Capacity 300 Sight Range 16 Terrain Scan Range 14 Terrain Scan Density 10 Evasion (%) 42 Item Schematics ----------------- None Robot Schematics ------------------ G-34 Mercenary | -10/Materials | Hacked Fabricated ------------ Nothing Alien Tech Used ----------------- None Achievements -------------- None Challenges ------------ None Game ------ Seed NavigationFlightPrototype Manual? 0 Play Time 00:10:03 Cumulative 13.1 hours Start 2024.02.16 @ 13:51:45 End 2024.02.16 @ 13:59:26 Sessions 1 Manual Loads 0 Difficulty Rogue Special Mode None Game No. 9 Rogue 9 Adventurer 0 Explorer 0 Win Type - Total 0 Types 0/0/0/0/0/0/0/0/0 Lore% 14 Gallery% 16 Achievement% 19 Wizard Run 0 Options --------- ASCII 0 Keyboard 0 Movement Mouse Keybinds 0 Fullscreen 2 Font 18/SmallcapsGlow Map View 112x50 Tactical HUD 1 Map Filters NONE Filters NONE Steam 1 RUN: 0835b2ab-dfeb-494c-9ff3-39af9db4976d